Cogmind - Beta 13 @@@ ROGUE MODE // 2024.04.07 @ 12:05:20 Player: TheLargestBoi Result: Self-destructed Performance ------------- Evolutions (3) 1500 Regions Visited (6) 1200 Robots Destroyed (25) 125 Value Destroyed (539) 539 Prototype IDs (7) 140 Alien Tech Used (0) 0 Bonus (17) 17 TOTAL SCORE: 3521 Bonus ------- High Alert Combat Kills 17 Cogmind --------- Core Integrity 670/700 Matter 272/300 Energy 310/310 System Corruption 0% Temperature Cool (0) Movement Rolling (141) Location -7/Waste Parts ------- > --- POWER (2) -------- Multi-Deuterium Engine > --- PROPULSION (5) --- Wheeled Armored-Carbon Exoskeleton > --- UTILITY (4) ------ Armored Scrap Engine Improved Sensor Array > --- WEAPON (2) ------- Accelerated Assault Construct/G Charged Construct/C > --- INVENTORY (5) ---- Advanced Visual Processing Unit Improved Sensor Array Advanced Terrain Scan Processor Shock Absorption System Mini Grenade Launcher Peak State ------------ > --- POWER ------------ Light Ion Engine Multi-Deuterium Engine > --- PROPULSION ------- Wheeled Armored-Carbon Exoskeleton Improved Flight Unit Improved Flight Unit Improved Flight Unit > --- UTILITY ---------- Armored Scrap Engine Small Storage Unit Improved Sensor Array > --- WEAPON ----------- Accelerated Assault Construct/G Charged Construct/C > --- INVENTORY -------- Improved Flight Unit Compact Battery Advanced Visual Processing Unit Improved Sensor Array Advanced Terrain Scan Processor Shock Absorption System Proton Missile Launcher Mini Grenade Launcher [Rating: 54] Favorites ----------- Power Light Ion Engine Engine Light Ion Engine Propulsion Improved Flight Unit Leg Aluminum Leg Wheel Constructs Hover Unit Hover Unit Flight Unit Improved Flight Unit Utility Small Storage Unit Device Improved Sensor Array Storage Small Storage Unit Processor Signal Interpreter Weapon Small Laser Energy Gun Small Laser Ballistic Gun Light Assault Rifle Ballistic Cannon Constructs Launcher Mini Grenade Launcher Special Weapon Plasma Cutter Build | -11 -10 -9 -9 -9 -7 -7 ------- Run | Yrd Mat Mat Sto Rec Fac Was Slots Evolved 6 | . . 2 . . 4 . Power 1 | . . . . . 1 . Propulsion 3 | . . 1 . . 2 . Utility 2 | . . 1 . . 1 . Weapon . | . . . . . . . Parts Attached 43 | 7 9 19 1 2 5 . Power 3 | 1 1 1 . . . . Engine 3 | 1 1 1 . . . . Core . | . . . . . . . Reactor . | . . . . . . . Propulsion 16 | 2 5 7 . . 2 . Treads . | . . . . . . . Leg 3 | 2 1 . . . . . Wheel . | . . . . . . . Hover 2 | . 2 . . . . . Flight 11 | . 2 7 . . 2 . Utility 16 | 2 2 9 . 1 2 . Device 11 | 1 2 6 . 1 1 . Storage 4 | 1 . 2 . . 1 . Processor 1 | . . 1 . . . . Hackware . | . . . . . . . Protection . | . . . . . . . Artifact . | . . . . . . . Weapon 8 | 2 1 2 1 1 1 . Energy Gun 3 | . 1 1 . 1 . . Energy Cannon . | . . . . . . . Ballistic Gun 2 | 2 . . . . . . Ballistic Cannon . | . . . . . . . Launcher 1 | . . 1 . . . . Special Weapon 2 | . . . 1 . 1 . Impact Weapon . | . . . . . . . Slashing Weapon . | . . . . . . . Piercing Weapon . | . . . . . . . Special Melee Weapon . | . . . . . . . Unidentified Prototypes 1 | . . 1 . . . . Parts Lost 5 | . 1 2 . . . 2 Power 1 | . . . . . . 1 Propulsion 1 | . 1 . . . . . Utility 3 | . . 2 . . . 1 Weapon . | . . . . . . . Highest Loss Streak 2 | . 1 1 . . . 2 To Critical Strikes . | . . . . . . . Average Slot Usage (%) 92 | . 98 94 100 88 85 74 Engine 11 | . 14 11 11 11 9 13 Leg 2 | . 9 . . . . . Flight 28 | . 15 31 33 33 38 22 Device 15 | . 21 14 11 11 15 15 Storage 8 | . 6 11 11 11 7 6 Processor 2 | . . 3 11 . . . Energy Gun 12 | . 7 13 13 21 11 4 Ballistic Gun 5 | . 20 3 . . . . Special Weapon 1 | . . . 8 . 1 . Naked Turns . | . . . . . . . Heaviest Build 32 | 12 13 12 11 11 26 32 Greatest Support 52 | 20 20 18 15 15 25 52 Greatest Overweight (x) 3 | . 3 1 . . 1 2 Average Overweight (x) . | . . . . . . . Largest Inventory Capacity 8 | 8 8 8 8 8 8 8 Average Capacity 7 | 7 6 7 8 8 8 7 Most Carried 8 | 4 8 8 8 8 8 8 Average Carried 6 | 2 6 6 7 8 7 7 Final Capacity 8 | 8 5 8 8 8 8 5 Final Carried 8 | 4 5 8 8 8 8 5 Scrap Engine Consumption 46 | . . . . 12 32 2 Constructs Created 4 | . . . . . 2 2 Constructs Modified 5 | . . . . . 2 3 Class Distribution -------------------- 63% | Mutant 20% | Sprinter 12% | Scavenger-Mutant 3% | Construct Dominant Class ---------------- Mutant | -10/Materials Scavenger-Mutant | -9/Materials Mutant | -9/Storage Mutant | -9/Recycling Sprinter | -7/Factory Construct | -7/Waste Resources | -11 -10 -9 -9 -9 -7 -7 ----------- Run | Yrd Mat Mat Sto Rec Fac Was Matter Collected 817 | 225 197 112 . 243 40 . Remotely . | . . . . . . . Salvage Created 912 | 24 242 272 . 316 58 . Parts 53 | 2 20 23 . 5 3 . Haulers Intercepted 4 | . 2 1 . . 1 . Recyclers Shooed 2 | . . . . 2 . . Parts Field Recycled . | . . . . . . . Retrieved Matter . | . . . . . . . Parts Self-Destructed . | . . . . . . . Prevented . | . . . . . . . Kills | -11 -10 -9 -9 -9 -7 -7 ------- Run | Yrd Mat Mat Sto Rec Fac Was Combat Hostiles Destroyed 16 | . 5 11 . . . . Guns 5 | . 5 . . . . . AOE 11 | . . 11 . . . . Classes Destroyed 9 | 1 5 2 . 1 . . Tunneler 1 | 1 . . . . . . Hauler 4 | . 2 1 . . 1 . Recycler 2 | . . . . 2 . . Operator 1 | . 1 . . . . . Watcher 1 | . 1 . . . . . Swarmer 6 | . 3 3 . . . . Grunt 7 | . 2 5 . . . . Brawler 1 | . . 1 . . . . Sentry 2 | . . 2 . . . . Best Kill Streak 7 | 1 5 7 . 1 1 . Combat Bots Only 7 | . 5 7 . . . . Max Kills in Single Turn 4 | 1 1 4 . 1 1 . Gunslinging . | . . . . . . . Exploded 4 | . . 4 . . . . Melee . | . . . . . . . Uniques/NPCs Destroyed . | . . . . . . . Combat | -11 -10 -9 -9 -9 -7 -7 -------- Run | Yrd Mat Mat Sto Rec Fac Was Hostile Shots Fired 65 | . 36 19 . . 7 3 Missed 21 | . 7 9 . . 5 . Damage Taken 735 | . 368 179 . . 30 158 Core 105 | . 28 47 . . 30 . Absorbed by Shields . | . . . . . . . Regen/Repaired (Parts) 19 | . . 19 . . . . Core Remaining (%) 92 | 100 88 . . 88 . . Volleys Fired 91 | 3 41 16 5 15 8 3 Largest 2 | 2 2 2 1 2 2 2 Hottest 91 | 40 60 80 20 80 80 91 Shots Fired 167 | 6 79 25 5 30 16 6 Gun 148 | 6 79 16 . 30 14 3 Cannon 3 | . . . . . . 3 Launcher 9 | . . 9 . . . . Special 7 | . . . 5 . 2 . Kinetic 73 | 6 64 . . . . 3 Thermal 82 | . 15 16 5 30 16 . Explosive 9 | . . 9 . . . . Electromagnetic 3 | . . . . . . 3 Robot Hit Streak 8 | 2 6 8 . 8 7 4 Robot Miss Streak 4 | 1 4 2 . 2 1 2 Penetration Max . | . . . . . . . Secondary Targets 1 | . 1 . . . . . Max Gunslinging Chain 1 | . 1 . . . . . Shots Hit Robots 95 | 4 39 15 . 23 10 4 Core Hits 54 | 1 19 23 . 9 2 . Critical Kills . | . . . . . . . Critical Parts Destroyed 1 | . 1 . . . . . Critical Strikes 1 | . 1 . . . . . Destroy 1 | . 1 . . . . . Melee Attacks . | . . . . . . . Impact . | . . . . . . . Slashing . | . . . . . . . Piercing . | . . . . . . . Sneak Attacks . | . . . . . . . Combat Hostiles . | . . . . . . . Follow-up Attacks . | . . . . . . . Damage Inflicted 1658 | 40 442 761 . 252 114 49 Guns 985 | 40 410 124 . 252 114 45 Cannons 4 | . . . . . . 4 Explosions 669 | . 32 637 . . . . Melee . | . . . . . . . Ramming . | . . . . . . . Kinetic 431 | 40 346 . . . . 45 Thermal 586 | . 96 124 . 252 114 . Explosive 637 | . . 637 . . . . Electromagnetic 4 | . . . . . . 4 Impact . | . . . . . . . Slashing . | . . . . . . . Piercing . | . . . . . . . Highest Corruption . | . . . . . . . Average Corruption . | . . . . . . . Corruption Purged . | . . . . . . . Corruption Blocked . | . . . . . . . Overload Shots . | . . . . . . . Overflow Damage . | . . . . . . . Projectiles . | . . . . . . . Explosions . | . . . . . . . Melee . | . . . . . . . Knockbacks . | . . . . . . . Impact . | . . . . . . . Kinetic . | . . . . . . . Secondary . | . . . . . . . Self-Inflicted Damage 114 | . 64 50 . . . . Shots 3 | . 1 2 . . . . Rammed . | . . . . . . . Targets Rammed . | . . . . . . . Kicked . | . . . . . . . Crushed . | . . . . . . . Highest Temperature 93 | . 86 88 . 93 36 81 Average Temperature 27 | . 29 34 . 36 17 18 Received Heat Transfer 138 | . 102 36 . . . . Siege Activations . | . . . . . . . Robots Corrupted . | . . . . . . . Combat Hostiles . | . . . . . . . Parts Fried . | . . . . . . . Impact Corruptions . | . . . . . . . Robots Melted . | . . . . . . . Combat Hostiles . | . . . . . . . Parts Melted . | . . . . . . . Heat Transferred 1300 | . 200 275 . 575 250 . Parts Sabotaged . | . . . . . . . Parts Stolen . | . . . . . . . Parts Stripped . | . . . . . . . Power Chain Reactions . | . . . . . . . Alert | -11 -10 -9 -9 -9 -7 -7 ------- Run | Yrd Mat Mat Sto Rec Fac Was Peak Influence 546 | 5 235 546 268 141 228 94 Initial 230 | . 3 4 230 104 108 79 Average 188 | . 119 336 265 127 163 84 Maximum Alert Level 2 | . 1 2 1 . 1 . Low Security (%) 58 | 100 68 33 . 100 77 100 Level 1 33 | . 31 23 100 . 22 . Level 2 8 | . . 42 . . . . Level 3 . | . . . . . . . Level 4 . | . . . . . . . Level 5 . | . . . . . . . High Security . | . . . . . . . Max Security . | . . . . . . . Squads Dispatched 5 | . . . 1 . 4 . Investigation 2 | . . . 1 . 1 . Extermination 1 | . . . . . 1 . Reinforcement 2 | . . . . . 2 . Assault . | . . . . . . . Garrison . | . . . . . . . Intercept . | . . . . . . . Searches Triggered . | . . . . . . . Construction Impeded . | . . . . . . . Haulers Reinforced 1 | . . . . . 1 . Active Scanning Responses . | . . . . . . . Cargo Convoy Interrupts . | . . . . . . . Stealth | -11 -10 -9 -9 -9 -7 -7 --------- Run | Yrd Mat Mat Sto Rec Fac Was Distress Signals 3 | . . 3 . . . . Communications Jammed . | . . . . . . . Distress Signals . | . . . . . . . Times Spotted 62 | . 24 30 1 . 5 2 Peak Tracking Total 10 | . 5 10 1 . 4 2 Tactical Retreats 12 | . 5 5 . . 2 . Traps | -11 -10 -9 -9 -9 -7 -7 ------- Run | Yrd Mat Mat Sto Rec Fac Was Traps Triggered 1 | . . . . . 1 . Indirectly . | . . . . . . . Trap Hack Attempts . | . . . . . . . Triggered . | . . . . . . . Disarmed . | . . . . . . . Reprogrammed . | . . . . . . . Reused . | . . . . . . . Traps Extracted . | . . . . . . . Installed . | . . . . . . . Triggered . | . . . . . . . Machines | -11 -10 -9 -9 -9 -7 -7 ---------- Run | Yrd Mat Mat Sto Rec Fac Was Machines Disabled 3 | . 2 1 . . . . Max in Single Turn 2 | . 2 1 . . . . Machines Repaired . | . . . . . . . Machines Dismantled 1 | . . . 1 . . . Machines Sabotaged . | . . . . . . . Overloaded Fab Kills . | . . . . . . . Hacking | -11 -10 -9 -9 -9 -7 -7 --------- Run | Yrd Mat Mat Sto Rec Fac Was Machines Accessed 32 | . 10 3 7 8 4 . Terminals 23 | . 8 1 6 4 4 . Fabricators . | . . . . . . . Repair Stations 1 | . . 1 . . . . Recycling Units 8 | . 2 1 1 4 . . Scanalyzers . | . . . . . . . Garrison Access . | . . . . . . . Total Hacks 89 | . 32 10 19 18 10 . Successful 46 | . 20 4 9 11 2 . Failed 43 | . 12 6 10 7 8 . Catastrophic 13 | . 1 1 6 4 1 . Database Lockouts . | . . . . . . . Manual 44 | . 24 6 9 3 2 . Terminals 66 | . 26 3 16 11 10 . Fabricators . | . . . . . . . Repair Stations 4 | . . 4 . . . . Recycling Units 19 | . 6 3 3 7 . . Scanalyzers . | . . . . . . . Garrison Access . | . . . . . . . Terminal Hacks 24 | . 11 . 6 5 2 . Record 2 | . . . . . 2 . Part Schematic 2 | . 1 . . 1 . . Prototype ID Bank 1 | . . . . 1 . . Open Door 1 | . . . 1 . . . Branch Access Points 2 | . 1 . 1 . . . Emergency Access Points 2 | . 1 . 1 . . . Terminal Index 2 | . 1 . . 1 . . Alert Level 1 | . 1 . . . . . Unreport Threat 1 | . 1 . . . . . Locate Traps 1 | . . . 1 . . . Dispatch Records 1 | . 1 . . . . . Maintenance Status 1 | . . . . 1 . . Patrol Status 2 | . 1 . 1 . . . Transport Status 1 | . 1 . . . . . Registered Components 1 | . 1 . . . . . Zone Layout 3 | . 1 . 1 1 . . Fabricator Hacks . | . . . . . . . Repair Station Hacks 2 | . . 2 . . . . Scan Component 1 | . . 1 . . . . Repair 1 | . . 1 . . . . Recycling Unit Hacks 7 | . 1 . 1 5 . . Report Inventory 6 | . 1 . 1 4 . . Retrieve Components 1 | . . . . 1 . . Scanalyzer . | . . . . . . . Garrison Access Hacks . | . . . . . . . Unauthorized Hacks 13 | . 8 2 2 1 . . Terminals 6 | . 4 1 . 1 . . Assimilate 1 | . 1 . . . . . Botnet 4 | . 2 1 . 1 . . Operators 1 | . 1 . . . . . Fabricators . | . . . . . . . Repair Stations . | . . . . . . . Recycling Units 7 | . 4 1 2 . . . Reject 3 | . 2 . 1 . . . Mask 4 | . 2 1 1 . . . Scanalyzers . | . . . . . . . Garrison Access . | . . . . . . . Data Cores Recovered 1 | . 1 . . . . . Used 1 | . 1 . . . . . Hacking Detections 28 | . 10 3 6 5 4 . Full Trace Events 3 | . . . 1 1 1 . Feedback Events . | . . . . . . . Feedback Blocked . | . . . . . . . Robot Schematics Acquired . | . . . . . . . Robots Built . | . . . . . . . Authchips . | . . . . . . . Time . | . . . . . . . Total Robot Build Rating . | . . . . . . . Part Schematics Acquired 2 | . 1 . . 1 . . Parts Built . | . . . . . . . Authchips . | . . . . . . . Time . | . . . . . . . Total Part Build Rating . | . . . . . . . Parts Repaired 1 | . . 1 . . . . Time 26 | . . 26 . . . . Parts Recycled . | . . . . . . . Recycled Matter . | . . . . . . . Retrieved Matter . | . . . . . . . Retrieved Components 1 | . . . . 1 . . Parts Scanalyzed . | . . . . . . . Part Schematics Acquired . | . . . . . . . Parts Damaged . | . . . . . . . Bothacking | -11 -10 -9 -9 -9 -7 -7 ------------ Run | Yrd Mat Mat Sto Rec Fac Was Used RIF Installer . | . . . . . . . Robots Hacked . | . . . . . . . Non-combat . | . . . . . . . Combat . | . . . . . . . Robot Hacks Applied . | . . . . . . . Relay Couplers Released . | . . . . . . . Fabnet Peak Effective % . | . . . . . . . Robots Rewired . | . . . . . . . Allies Hacked . | . . . . . . . Hacks Repelled . | . . . . . . . Allies | -11 -10 -9 -9 -9 -7 -7 -------- Run | Yrd Mat Mat Sto Rec Fac Was Total Allies 1 | . 1 . . . . . Largest Group 1 | . 1 1 . . . . Highest-Rated Group 10 | . 10 10 . . . . Highest-Rated Ally 10 | . 10 10 . . . . Total Orders . | . . . . . . . Ally Attacks . | . . . . . . . Total Damage . | . . . . . . . Kills . | . . . . . . . Allies Corrupted . | . . . . . . . Allies Melted . | . . . . . . . Intel | -11 -10 -9 -9 -9 -7 -7 ------- Run | Yrd Mat Mat Sto Rec Fac Was Robot Analysis Total . | . . . . . . . Derelict Logs Recovered . | . . . . . . . Drone Launches . | . . . . . . . Drone Recoveries . | . . . . . . . Exploration | -11 -10 -9 -9 -9 -7 -7 ------------- Run | Yrd Mat Mat Sto Rec Fac Was Turns Passed 1861 | 82 433 367 319 242 317 101 Spaces Moved 2692 | 53 552 652 195 422 685 133 Core 7 | 7 . . . . . . Treads 13 | . . . . . . 13 Legs 127 | 46 75 . . . . 6 Wheels . | . . . . . . . Hover 33 | . 33 . . . . . Flight 2512 | . 444 652 195 422 685 114 Fastest Speed 28 | 50 37 34 34 34 28 28 Average Speed 38 | 110 50 34 34 34 28 57 Slowest Speed 280 | 120 280 117 34 34 98 230 Overloaded Moves . | . . . . . . . Propulsion Burnouts . | . . . . . . . Robots Hopped 5 | . . 1 . 1 3 . Cave-ins Triggered . | . . . . . . . Exploration Rate (%) 46 | 5 84 51 45 80 13 45 Regions Visited 6 Branch Regions 2 Pre-discovered Areas . | . . . . . . . Known Exits Taken 2 | . . 1 1 . . . Unknown Exits Taken 3 | 1 1 . . 1 . . Scrap Searched . | . . . . . . . Spaces Dug 11 | . . 11 . . . . Terrain Destroyed 88 | . 36 52 . . . . Melee . | . . . . . . . Projectile . | . . . . . . . AOE 88 | . 36 52 . . . . Terrain Rammed . | . . . . . . . Walls Destroyed . | . . . . . . . Machines Disabled . | . . . . . . . Actions | -11 -10 -9 -9 -9 -7 -7 --------- Run | Yrd Mat Mat Sto Rec Fac Was Total 3323 | 67 637 770 419 490 787 153 Wait 425 | 1 12 58 208 48 85 13 Move 2677 | 52 551 649 194 419 679 133 Hop 5 | . . 1 . 1 3 . Pick Up 35 | 4 12 13 1 1 4 . Fast Attach 13 | 7 2 3 . 1 . . Attach 8 | . 2 3 . . 3 . Detach 1 | . . . . 1 . . Swap 22 | . 5 13 1 1 2 . Drop 37 | . 12 14 1 3 3 4 Fire 91 | 3 41 16 5 15 8 3 Melee . | . . . . . . . Ram . | . . . . . . . Kick . | . . . . . . . Crush . | . . . . . . . Escape Stasis . | . . . . . . . Rewire . | . . . . . . . Trap . | . . . . . . . Miscellaneous 9 | . . . 9 . . . Route ------- -11/Scrapyard -10/Materials (discovered 5 exits: *Mat x3 / *Min x2) -9/Materials (discovered 3 exits: *Mat x2 / *Sto) -9/Storage -9/Recycling -7/Factory -7/Waste History --------- Turn | Location | Event 2 | -11/Scrapyard | Met Revision 17 6 | -11/Scrapyard | Discovered new exit (range 16) 83 | -11/Scrapyard | Entered Materials 314 | -10/Materials | Build established: Mutant 345 | -10/Materials | Discovered new exit (range 12) 371 | -10/Materials | Discovered new exit (range 10) 377 | -10/Materials | Discovered new exit (range 15) 435 | -10/Materials | Identified exit to Mines 483 | -10/Materials | Discovered new exit (range 14) 516 | -10/Materials | Entered another Materials area 516 | -9/Materials | Accompanied by 1 ally 516 | -9/Materials | Evolved 2 slots: Propulsion x1, Utility x1 665 | -9/Materials | Destroyed 7 combat bots 674 | -9/Materials | Discovered new exit (range 16) 715 | -9/Materials | Repaired Flight Unit 723 | -9/Materials | Discovered new exit (range 12) 776 | -9/Materials | Identified exit to Materials 836 | -9/Materials | Discovered new exit (range 5) 838 | -9/Materials | Identified exit to Storage 883 | -9/Materials | Entered Storage 905 | -9/Storage | Identified exit to Recycling 1202 | -9/Storage | Entered Recycling 1205 | -9/Recycling | Found Scrap Engine 1319 | -9/Recycling | Discovered new exit (range 12) 1444 | -9/Recycling | Entered Factory 1444 | -7/Factory | Evolved 4 slots: Power x1, Propulsion x2, Utility x1 1743 | -7/Factory | Discovered new exit (range 15) 1761 | -7/Factory | Sucked down chute 1761 | -7/Factory | Entered Waste 1763 | -7/Waste | Build established: Sprinter 1769 | -7/Waste | Spotted C-40 Crusher 1777 | -7/Waste | Spotted C-40 Crusher 1792 | -7/Waste | Spotted C-40 Crusher 1794 | -7/Waste | Spotted C-40 Crusher 1844 | -7/Waste | Spotted C-40 Crusher 1848 | -7/Waste | Crushed by Compactor (1 part destroyed, 1 dropped) 1858 | -7/Waste | Crushed by Compactor (1 part destroyed) 1862 | -7/Waste | Self-destructed Last Messages --------------- 01804_ Arm. Scrap Engine constructs Accelerated Assault Construct/G. 01804_ Dropped Imp. Flight Unit. 01816_ Arm. Scrap Engine constructs Treaded Armored-Aluminum Exoskeleton. 01825_ Slug penetrates Wall. 01832_ Scrap Engine modifies Treaded Armored-Aluminum Exoskeleton: Coverage -28, Time/Move +10, Support +1 Expanded to 2 slots (? T150 S40) Renamed Carbon-Aluminum Exoskeleton. 01837_ Dropped Imp. Flight Unit. 01841_ Imp. Flight Unit crushed. 01844_ Scrap Engine modifies Carbon-Aluminum Exoskeleton: Time/Move +46, Support +12 Renamed Treaded Carbon-Aluminum Exoskeleton. 01848_ Lgt. Ion Engine crushed. 01848_ Imp. Flight Unit crushed. 01858_ Sml. Storage Unit crushed. 01862_ Scrap Engine modifies Treaded Carbon-Aluminum Exoskeleton: Time/Move -55, Max Integrity -75 Expanded to 3 slots (? T141 S78) Renamed Wheeled Armored-Carbon Exoskeleton. Map ----- +----------------------------------------------------+ | ?????????????????????????????????????????????????? | | ?????????????????????????????????????????????????? | | ?????????????????????????????????????????????????? | | ?????????????????????????????????????????????????? | | ?????????????????????????????????????????????????? | | ?????????????????????????????????????????????????? | | ?????????????????????????????????????????????????? | | ?????????????????????????????????????????????????? | | ?????????????????????????????????????????????????? | | ?????????????????????????????????????????????????? | | ?????????????????????????????????????????????????? | | ?????????????????????????????????????????????????? | | ?????????????????????????????????????????????????? | | ??????????????????????##########??##########?????? | | ??????????????????????# #??# #?????? | | ??????????????????????# #??# #?????? | | ??????????????????????# #??# #?????? | | ??????????????????????# #??# #?????? | | ??????????????????????# #??# #?????? | | ??????????????????????# #??# #?????? | | ??????????????????????# #??? ??????? | | ??????????????????????# #???? ???????? | | ??????????????????????### ###????# #???????? | | ??????????############??#! #??????# #???????? | | ??????????# #??#=CC #??????# #???????? | | ??????????# #??#@CC #??????# #???????? | | ??????????# ####CC ######## ? ######## | | ??????????# CC ? | | ??????????# | | ??????????# | | ??????????# = | | ??????????# #### ######## ######## | | ??????????# #??# #??????# #??????? | | ??????????# #??# #??????# #???????? | | ??????????############??# #??????# #???????? | | ??????????????????????### ######## #???????? | | ??????????????????????# ???????? | | ??????????????????????# ??????? | | ??????????????????????# ?????? | | ??????????????????????# ????? | | ??????????????????????### ######## #####???? | | ????????????????????????# #??????# #???????? | | ????????????????????????# ! #??????# ????????? | | ????????????????????????# #???????? ????????? | | ??????????????????????### ######## #???????? | | ??????????????????????# ?????? | | ??????????????????????# ?????? | | ??????????????????????# ?????? | | ??????????????????????# ?????? | | ??????????????????????### ######## ##??????? | +----------------------------------------------------+ Best States ------------- Heat Dissipation 34 Energy Generation 21 Energy Capacity 335 Matter Stores 300 Matter Capacity 300 Sight Range 16 Robot Scan Range 15 Terrain Scan Density 10 ECM Strength 1 Additional Mass Support 6 Evasion (%) 64 Recoil Reduction 2 Item Schematics ----------------- Flight Unit | -10/Materials | Hacked Adv. Treads | -9/Recycling | Hacked Robot Schematics ------------------ None Fabricated ------------ Nothing Alien Tech Used ----------------- None Achievements -------------- None Challenges ------------ None Game ------ Seed RegenerativeGatlingLauncher Manual? 0 Play Time 00:35:53 Cumulative 32.6 hours Start 2024.04.06 @ 17:23:42 End 2024.04.07 @ 12:05:20 Sessions 3 Manual Loads 0 Difficulty Rogue Special Mode None Game No. 70 Rogue 70 Adventurer 0 Explorer 0 Win Type - Total 1 Types 1/0/0/0/0/0/0/0/0 Lore% 19 Gallery% 32 Achievement% 33 Wizard Run 0 Options --------- Layout 0 ASCII 0 Keyboard 0 Movement Numpad Keybinds 0 Fullscreen 1 Font 18/SmallcapsGlow Map View 76x50 Zoom Use 0% Tactical HUD 1 Map Filters NONE Filters NONE Steam 1 RUN: 9b128b5c-bf97-4de7-9eb9-6fd922b40b26